[Event "1st Chessable Sunway Formentera 2022"]
[Site "Formentera Punta Prima"]
[Date "2022.04.30"]
[Round "2"]
[White "Real, Thibault"]
[Black "Batsiashvili, Nino"]
[Result "1/2-1/2"]
[ECO "C47"]
[WhiteElo "2262"]
[BlackElo "2463"]
[Annotator "TA"]
[PlyCount "95"]
[EventDate "2022.05.05"]
[EventType "swiss"]
[EventCountry "ESP"]
[SourceTitle "playchess.com"]
[Source "ChessBase"]
[SourceQuality "1"]
[TimeControl "40/5400+30:1800+30"]

{[%evp 15,95,0,4,-10,37,0,0,0,0,-15,-10,-17,-5,-16,0,-4,0,-11,5,12,11,6,14,0,0,0,0,0,0,0,18,22,25,26,43,29,35,19,42,0,48,0,25,18,22,0,93,82,105,0,0,0,0,0,0,0,0,-4,64,0,21,22,22,21,25,18,20,17,27,0,0,-10,0,0,8,4,4,2,8,2,5,0]} 1. e4 {[%emt 1:30:58]} e5 {[%emt 1:30:55]} 2. Nf3 {[%emt 0:00:28]} Nc6 {[%emt 0:00:06]} 3. Nc3 {[%emt 0:00:29]} Nf6 {[%emt 0:00:45]} 4. d4 {[%emt 0:00:29]} exd4 {[%emt 0:00:38]} 5. Nxd4 {[%emt 0:00:33]} Bb4 {[%emt 0:00:25]} 6. Nxc6 {[%emt 0:00:25]} bxc6 {[%emt 0:00:35]} 7. Bd3 {[%emt 0:00:34]} O-O {[%emt 0:00:00]} 8. O-O {[%emt 0:00:29]} d5 {[%emt 0:01:00]} 9. exd5 {[%emt 0:00:06] C47: Scotch Four Knights and Four Knights with 4 g3.} Bg4 {[%emt 0:00:00]} (9... cxd5 $11 {is more appropriate.} 10. h3 Rb8) 10. Ne2 {[%emt 0:00:24]} (10. f3 $5 {[%cal Rf3g4]} Bd7 11. dxc6 Bxc6 12. Be3 $14) 10... cxd5 {[%emt 0:00:00]} 11. f3 {[%emt 0:00:00] [#]} Bd7 $146 {[%emt 0:00:00]} ({Predecessor:} 11... Bc5+ 12. Kh1 Bh5 13. Bg5 c6 14. c4 d4 15. Qa4 Qb6 16. Bxf6 gxf6 17. b4 Qxb4 18. Qxc6 {1-0 (46) Volcik,L (2008)-Musil,J (1610) Sec u Chrudimi 2008}) 12. c4 {[%emt 0:00:00]} c6 {[%emt 0:01:31]} 13. b3 {[%emt 0:00:00]} Re8 {[%emt 0:00:00]} 14. Bb2 {[%emt 0:00:00]} Qe7 {[%emt 0:00:00]} 15. Qc2 {[%emt 0:02:07]} h6 {[%emt 0:00:00]} 16. Rac1 {[%emt 0:00:00]} Bc5+ {[%emt 0:00:00]} 17. Kh1 {[%emt 0:01:18] White wants to play cxd5.} Be3 {[%emt 0:02:24]} 18. Rcd1 {[%emt 0:00:00]} a5 {[%emt 0:00:00]} 19. Ba1 {[%emt 0:00:00]} a4 {[%emt 0:00:00]} 20. Bc3 {[%emt 0:00:00]} axb3 {[%emt 0:00:00]} 21. axb3 {[%emt 0:02:38][%cal Ba2b3,Bb3b4][%mdl 32]} Bb6 {[%emt 0:00:00]} 22. Qb2 {[%emt 0:00:00]} Bd8 {[%emt 0:00:00]} 23. cxd5 {[%emt 0:00:00]} cxd5 {[%emt 0:00:03]} 24. b4 {[%emt 0:00:00]} Nh5 {[%emt 0:01:39]} 25. g4 {[%emt 0:00:00]} Nf6 {[%emt 0:01:59]} 26. Ng3 {[%emt 0:02:10]} Qd6 {[%emt 0:00:00]} 27. Bb1 {[%emt 0:00:00]} Rc8 {[%emt 0:00:00]} (27... Qa6 $11) 28. Qd2 {[%emt 0:00:00]} (28. Bf5 $14) 28... Qa6 {[%emt 0:00:00]} 29. Bd4 {[%emt 0:01:06] Black must now prevent g5.} Bb5 {[%emt 0:01:44]} 30. Rf2 {[%emt 0:00:55]} Rc4 {[%emt 0:00:22] [#]} (30... Bb6 $11) 31. Nf5 $1 $16 {[%emt 0:00:07]} Qa4 {[%emt 0:00:00]} 32. Nd6 {[%emt 0:00:00] White is more active.} (32. Bd3 $16 Rxd4 33. Nxd4 Bxd3 34. Qxd3) 32... Rxd4 $11 {[%emt 0:01:59]} 33. Qxd4 {[%emt 0:01:26]} Bb6 $1 {[%emt 0:00:42]} 34. Qxb6 {[%emt 0:00:00]} Qxd1+ {[%emt 0:00:40]} 35. Kg2 {[%emt 0:01:11]} Qxb1 {[%emt 0:00:00]} 36. Qxb5 {[%emt 0:00:36]} Rf8 {[%emt 0:00:00]} (36... Re1 $11 37. Qb7 (37. Qb8+ $2 Kh7 $19) 37... Kh7 38. Qxf7 Rg1+ 39. Kh3 Qxb4) 37. Qb6 {[%emt 0:00:00]} (37. Qc5 $1 $14) 37... Qd3 {[%emt 0:00:00]} 38. Nf5 {[%emt 0:00:35][%cal Of5h6] Threatening Nxh6+!} h5 {[%emt 0:00:00]} 39. h3 {[%emt 0:00:32]} Re8 {[%emt 0:02:08]} 40. Qd4 {[%emt 0:00:00]} Qb1 {[%emt 0:00:00]} 41. Rb2 {[%emt 0:25:48]} Qe1 {[%emt 0:22:45]} 42. g5 {[%emt 0:00:00]} Re5 {[%emt 0:06:34] The position is equal.} 43. Qd3 {[%emt 0:01:39] [#]} ({Don't play} 43. gxf6 Rxf5 44. Kh2 (44. Qd2 $2 Qh4 $19) 44... Qe6 $17) 43... Qc1 $1 {[%emt 0:00:00]} 44. Qd2 {[%emt 0:05:16]} Qxd2+ {[%emt 0:00:00]} 45. Rxd2 {[%emt 0:00:39]} Rxf5 {[%emt 0:00:00]} 46. gxf6 {[%emt 0:00:21]} Rxf6 {[%emt 0:00:04]} 47. Rxd5 {[%emt 0:00:00]} Rf4 {[%emt 0:01:46]} 48. Rxh5 {[%emt 0:00:00] Weighted Error Value: White=0.14 (very precise) /Black=0.16 (very precise)} 1/2-1/2

[Event "1st Chessable Sunway Formentera 2022"]
[Site "Formentera Punta Prima"]
[Date "2022.04.30"]
[Round "2"]
[White "Buiza Prieto, Eihartze"]
[Black "Vrolijk, Liam"]
[Result "1/2-1/2"]
[ECO "B40"]
[WhiteElo "2044"]
[BlackElo "2467"]
[Annotator "TA"]
[PlyCount "102"]
[EventDate "2022.05.05"]
[EventType "swiss"]
[EventCountry "ESP"]
[SourceTitle "playchess.com"]
[Source "ChessBase"]
[SourceQuality "1"]
[TimeControl "40/5400+30:1800+30"]

{[%evp 9,102,13,14,14,37,6,6,0,10,9,4,7,6,0,1,0,8,-6,0,0,33,31,25,33,35,40,73,10,18,12,17,18,10,8,10,2,35,33,27,0,0,0,18,-14,2,0,0,-32,-27,-40,-8,-12,-15,-14,0,0,0,-14,-15,-30,0,-68,0,0,0,0,0,0,0,0,0,-37,-34,-30,-33,-43,0,0,0,0,0,0,0,0,0,0,0,0,0,0,0,0,0,0,0]} 1. e4 {[%emt 0:01:44]} c5 {[%emt 0:00:12]} 2. Nf3 {[%emt 0:00:34]} e6 {[%emt 0:00:09]} 3. b3 {[%emt 0:00:32]} b6 {[%emt 0:01:04]} 4. Bb2 {[%emt 0:02:06]} Bb7 {[%emt 0:00:46]} 5. Nc3 {[%emt 0:01:47]} Nf6 {[%emt 0:03:25]} 6. e5 {[%emt 0:08:35] B40: Sicilian: 2...e6, Unusual lines.} Nd5 {[%emt 0:01:29]} 7. Nxd5 {[%emt 0:01:11]} Bxd5 {[%emt 0:00:07]} 8. Be2 {[%emt 0:00:25]} Be7 {[%emt 0:02:09]} 9. O-O {[%emt 0:00:21]} O-O {[%emt 0:00:54]} 10. c4 {[%emt 0:01:18]} Bb7 {[%emt 0:01:22]} 11. d4 {[%emt 0:00:19]} d5 {[%emt 0:03:46]} 12. exd6 {[%emt 0:04:54] [#]} Bxd6 $146 {[%emt 0:01:52]} ({Predecessor:} 12... Qxd6 13. dxc5 Qxc5 14. a3 Rd8 15. Qc1 Nd7 16. b4 Qc6 17. Re1 Bf6 18. Bf1 Bxb2 19. Qxb2 {1-0 (43) Kiik,K (2445)-Franssila,T (2225) Laukaa 1998}) 13. Qc2 {[%emt 0:06:16][%cal Od4d5]} cxd4 {[%emt 0:04:58]} 14. Nxd4 {[%emt 0:03:56]} Qh4 {[%emt 0:09:17][%csl Gd6][%cal Rh4h2]} 15. g3 {[%emt 0:02:22]} (15. f4 $2 Bxf4 16. Nf3 Bxf3 17. Rxf3 Qxh2+ 18. Kf2 Qh4+ 19. Kg1 Bh2+ 20. Kf1 Bg3 21. Rxg3 Qxg3 $17) 15... Qh3 {[%emt 0:01:09][%csl Gb7][%cal Rh3g2]} 16. Bf3 {[%emt 0:00:15] Prevents Qg2+.} Bxf3 {[%emt 0:00:42]} 17. Nxf3 {[%emt 0:00:07] Qe4 is the strong threat.} Qg4 {[%emt 0:01:59] [#] Inhibits Qe4.} 18. Kg2 {[%emt 0:03:31]} (18. Rad1 $1 $16) 18... Nc6 {[%emt 0:00:24]} 19. h3 {[%emt 0:02:39]} (19. Rad1 {is interesting.} Rad8 20. h3 Qg6 21. Qxg6 hxg6 22. h4) 19... Qg6 {[%emt 0:00:31]} 20. Qxg6 {[%emt 0:04:24]} hxg6 {[%emt 0:00:31]} 21. Rfd1 {[%emt 0:00:50]} Rfd8 {[%emt 0:00:12]} 22. Nd4 {[%emt 0:03:24]} Ne7 {[%emt 0:08:08]} 23. Nb5 {[%emt 0:06:40]} Bc5 {[%emt 0:03:14]} 24. Ba3 {[%emt 0:00:43]} Bxa3 {[%emt 0:01:21]} 25. Nxa3 {[%emt 0:00:03]} Nc6 {[%emt 0:01:25]} 26. Nc2 {[%emt 0:01:18]} Kf8 {[%emt 0:02:55]} 27. Kf3 {[%emt 0:41:30]} g5 {[%emt 0:01:47]} 28. Ke2 {[%emt 0:00:00]} Ke7 {[%emt 0:00:25]} 29. Rh1 {[%emt 0:00:00]} a6 {[%emt 0:06:22]} 30. h4 {[%emt 0:00:00]} g4 {[%emt 0:00:54]} 31. Rhd1 {[%emt 0:00:00]} Ne5 {[%emt 0:01:12]} 32. Rac1 {[%emt 0:00:00]} f5 {[%emt 0:02:40]} 33. Nd4 {[%emt 0:00:00]} Rac8 {[%emt 0:02:06]} 34. Ke3 {[%emt 0:00:00]} Kf6 {[%emt 0:02:08]} 35. a3 {[%emt 0:00:00]} ({White should play} 35. Ne2 $11) 35... Rc7 {[%emt 0:03:34]} (35... a5 $15) 36. Ne2 $11 {[%emt 0:00:54]} Rcd7 {[%emt 0:03:38]} 37. Rxd7 {[%emt 0:00:59]} Rxd7 {[%emt 0:00:07][%mdl 4096] Endgame KRN-KRN} 38. Nd4 {[%emt 0:00:31]} Rc7 {[%emt 0:00:24]} 39. Ne2 {[%emt 0:01:11]} a5 {[%emt 0:00:59][%cal Oa5a4]} 40. a4 {[%emt 0:00:00]} Nd7 {[%emt 0:00:00]} 41. Nf4 {[%emt 0:13:04]} Nc5 {[%emt 0:04:05]} 42. Rb1 {[%emt 0:03:13]} Rd7 {[%emt 0:02:40]} 43. b4 $1 {[%emt 0:04:29] The position is equal.} Nxa4 {[%emt 0:02:56] White must now prevent ...Nc3.} 44. bxa5 {[%emt 0:00:06]} bxa5 {[%emt 0:00:06]} 45. Rb5 {[%emt 0:00:11]} Rc7 {[%emt 0:01:06]} 46. Rxa5 {[%emt 0:02:08]} Rxc4 {[%emt 0:02:20]} 47. Nh5+ {[%emt 0:00:18]} Kg6 {[%emt 0:01:50]} 48. Nf4+ {[%emt 0:00:06]} Kh6 {[%emt 0:01:00]} 49. Re5 {[%emt 0:01:49]} ({Don't blunder} 49. Nxe6 $2 Re4+ 50. Kd2 Nb6 51. Rxf5 Rxe6 $19) 49... Nc5 {[%emt 0:01:43]} 50. Nxe6 {[%emt 0:00:56]} Nxe6 {[%emt 0:00:10]} 51. Rxe6+ {[%emt 0:00:02]} g6 {[%emt 0:00:09] Weighted Error Value: White=0.11 (very precise) /Black=0.09 (flawless)} 1/2-1/2

[Event "1st Chessable Sunway Formentera 2022"]
[Site "Formentera Punta Prima"]
[Date "2022.04.30"]
[Round "2"]
[White "Cafolla, Peter"]
[Black "Soham Das"]
[Result "1/2-1/2"]
[ECO "B52"]
[WhiteElo "1936"]
[BlackElo "2266"]
[Annotator "TA"]
[PlyCount "116"]
[EventDate "2022.05.05"]
[EventType "swiss"]
[EventCountry "ESP"]
[SourceTitle "playchess.com"]
[Source "ChessBase"]
[SourceQuality "1"]
[TimeControl "40/5400+30:1800+30"]

{[%evp 9,116,10,10,0,0,0,0,-10,-3,-9,-11,-16,-9,-11,0,0,0,-8,0,-106,-105,-107,-110,-126,-64,-129,-121,-122,-106,-101,-106,-101,-115,-153,-162,-152,-89,-137,-137,-139,-129,-139,-112,-112,-112,-115,-95,-150,-133,-154,-140,-149,-148,-177,-177,-210,-173,-207,-211,-267,-248,-300,-298,-561,-561,-608,-279,-336,-216,-384,-350,-262,0,-234,-150,-149,0,-150,0,-126,-132,-141,-175,-308,-315,-325,-318,-269,0,0,0,-75,0,0,0,0,0,0,0,0,0,0,0,0,0,0,0,0,0]} 1. e4 {[%emt 0:00:02]} c5 {[%emt 0:01:01]} 2. Nf3 {[%emt 0:00:08]} d6 {[%emt 0:00:07]} 3. Bb5+ {[%emt 0:00:15]} Bd7 {[%emt 0:00:15]} 4. a4 {[%emt 0:00:07]} Nc6 {[%emt 0:02:51]} 5. O-O {[%emt 0:01:24]} a6 {[%emt 0:04:19]} 6. Bc4 {[%emt 0:01:58]} Nf6 {[%emt 0:12:15]} 7. Re1 {[%emt 0:01:32]} e6 {[%emt 0:05:13]} 8. Nc3 {[%emt 0:01:08]} Rc8 {[%emt 0:01:23]} 9. d3 {[%emt 0:08:13]} Be7 {[%emt 0:03:21]} 10. h3 {[%emt 0:05:23]} O-O {[%emt 0:12:16]} 11. Bf4 {[%emt 0:04:11]} Nd4 {[%emt 0:03:33]} 12. e5 {[%emt 0:16:52]} Nxf3+ {[%emt 0:09:34]} 13. Qxf3 {[%emt 0:00:15]} Bc6 {[%emt 0:00:13]} 14. exf6 {[%emt 0:07:10]} Bxf3 $17 {[%emt 0:00:17]} 15. fxe7 {[%emt 0:49:11]} Qxe7 {[%emt 0:00:07] And now ...Bc6 would win.} 16. gxf3 {[%emt 0:00:00]} Qd7 {[%emt 0:18:28]} (16... Qd8 $1 $17 {White must now prevent ...d5.} 17. Ba2 d5) 17. Kg2 {[%emt 0:00:00]} (17. a5 $15) 17... d5 {[%emt 0:00:40]} 18. Bb3 {[%emt 0:00:00]} b6 {[%emt 0:09:15]} 19. Rad1 {[%emt 0:00:00]} b5 {[%emt 0:02:44]} 20. axb5 {[%emt 0:00:00]} axb5 {[%emt 0:00:05]} 21. d4 {[%emt 0:00:00]} c4 {[%emt 0:05:09]} 22. Ba2 {[%emt 0:00:00]} Rfe8 {[%emt 0:06:05]} ({Better is} 22... b4 23. Ne2 Ra8) 23. Ne2 {[%emt 0:00:00]} ({White should play} 23. Bb1) 23... b4 {[%emt 0:02:01]} 24. c3 {[%emt 0:00:00]} Qa4 {[%emt 0:00:46]} 25. Bb1 {[%emt 0:00:00]} Ra8 {[%emt 0:00:29][%cal Bc8a8,Ba8a3,Ba3b3,Bb3b2][%mdl 32]} 26. Bd6 {[%emt 0:00:00]} bxc3 {[%emt 0:00:25]} 27. bxc3 {[%emt 0:00:00]} Qc6 {[%emt 0:00:26]} 28. Bf4 {[%emt 0:00:00]} (28. Bb4 $142) 28... Ra3 {[%emt 0:00:41]} 29. Rc1 {[%emt 0:00:00]} Rea8 {[%emt 0:00:27]} 30. Bg3 {[%emt 0:00:00]} Rb3 {[%emt 0:00:25]} 31. Bc2 {[%emt 0:00:00]} Rb2 {[%emt 0:00:14]} 32. Bb1 {[%emt 0:00:00]} Ra3 {[%emt 0:00:51]} 33. f4 {[%emt 0:00:00]} g6 {[%emt 0:00:22] Against f5} 34. Bh4 {[%emt 0:00:00]} Kg7 {[%emt 0:00:22]} 35. Be7 {[%emt 0:00:00]} Ra1 {[%emt 0:00:09]} 36. Kf3 $2 {[%emt 0:00:00]} (36. Bb4 {is a better defense.}) 36... Qa4 $19 {[%emt 0:01:08] ...Qb3 is the strong threat.} 37. f5 {[%emt 0:00:00]} exf5 {[%emt 0:00:21]} (37... Qb3 $142 38. f6+ Kh8) 38. Nf4 {[%emt 0:00:00][%cal Of4h5]} Qb3 {[%emt 0:00:35][%cal Rb2b1]} 39. Nh5+ $2 {[%emt 0:00:00]} (39. h4 {was the only defense.} Qb6 40. h5) 39... Kh6 {[%emt 0:00:14]} (39... gxh5 $2 {leads to mate.} 40. Rg1+ Kh8 41. Bf6#) 40. Nf6 {[%emt 0:00:00]} Ra8 {[%emt 0:00:00] Inhibits Bf8+.} ({Worse is} 40... Rbxb1 41. h4 Kg7 42. Nh5+ Kg8 43. Nf6+ Kg7 44. Nh5+ Kg8 45. Nf6+ Kh8 46. Nd7 $15) (40... Raxb1 $19 41. h4 Kg7 42. Nh5+ Kg8) 41. Bb4 $2 {[%emt 0:08:20]} (41. Bd6 $1 $11 {and White is okay.}) 41... Qa4 {[%emt 0:08:28]} 42. Bd6 {[%emt 0:02:01][%cal Ob1f5]} Qb3 {[%emt 0:02:48]} 43. Bb4 {[%emt 0:09:04]} Qa4 {[%emt 0:07:50]} 44. Bd6 {[%emt 0:00:16]} Rb6 {[%emt 0:00:52]} 45. Be5 {[%emt 0:01:47]} Re6 $1 {[%emt 0:03:16]} 46. Bxf5 {[%emt 0:09:01]} (46. h4 $142) 46... gxf5 {[%emt 0:04:18]} 47. Rg1 {[%emt 0:00:13][%cal Re5f4] [#]} Rxe5 {[%emt 0:00:05]} 48. dxe5 {[%emt 0:00:07]} Qc6 $2 {[%emt 0:00:14]} (48... d4 $19 49. h4 Qa3) 49. Kf4 $11 {[%emt 0:02:03] aiming for Rg5.} Qc5 {[%emt 0:00:25][%cal Rc5f2]} 50. f3 {[%emt 0:01:37] [#]} (50. Rcf1 $1 $11 Ra2 51. f3) 50... Qf2 {[%emt 0:01:40]} (50... Ra6 $1 $17 {[%cal Oa6f6]} 51. Kxf5 Qc8+ 52. Kf4 {[#]} Rxf6+ $1 {[%mdl 512]} 53. exf6 Qc7+ 54. Kf5 Qc8+ 55. Ke5 Qc5) 51. Rcf1 {[%emt 0:01:13] The position is equal.} Qc2 {[%emt 0:01:41]} 52. h4 {[%emt 0:04:20]} Qxc3 {[%emt 0:04:50]} 53. Rg5 {[%emt 0:02:12]} Qd2+ $1 {[%emt 0:00:55]} (53... Qd4+ $2 54. Kxf5 Qd3+ 55. Kf4 Qd2+ 56. Kg3 Qxg5+ 57. hxg5+ Kxg5 58. Nxd5 $18) 54. Kxf5 {[%emt 0:00:11][%cal Rf6g4] The board is on fire.} Qc2+ {[%emt 0:00:29]} (54... Qd3+ $2 55. Kf4 Qd2+ 56. Kg3 Qxg5+ 57. hxg5+ Kxg5 58. Nxd5 $18) 55. Kf4 {[%emt 0:00:14][%cal Rf6g4]} Qh2+ {[%emt 0:00:17]} 56. Kf5 {[%emt 0:00:32][%cal Rf6g4]} Qc2+ {[%emt 0:00:33]} 57. Kf4 {[%emt 0:00:10][%cal Rf6g4]} Qh2+ {[%emt 0:00:33]} 58. Kf5 {[%emt 0:01:43][%cal Rf6g4]} Qc2+ {[%emt 0:00:34] Weighted Error Value: White=0.34/Black=0.32} 1/2-1/2

[Event "1st Chessable Sunway Formentera 2022"]
[Site "Formentera Punta Prima"]
[Date "2022.04.30"]
[Round "2"]
[White "Fabregas, Oliver"]
[Black "Vanduyfhuys, Daria"]
[Result "0-1"]
[ECO "A08"]
[WhiteElo "1893"]
[BlackElo "2063"]
[Annotator "TA"]
[PlyCount "102"]
[EventDate "2022.05.05"]
[EventType "swiss"]
[EventCountry "ESP"]
[SourceTitle "playchess.com"]
[Source "ChessBase"]
[SourceQuality "1"]
[TimeControl "40/5400+30:1800+30"]

{[%evp 19,102,0,12,-25,46,43,33,9,8,0,0,-18,-4,-59,0,-63,-11,-39,-9,-43,46,0,80,0,186,177,191,185,186,16,35,45,35,22,35,22,214,-20,118,0,36,40,34,0,47,-14,-20,-105,-107,-104,-88,-178,-145,-280,-186,-196,-175,-190,-194,-376,-64,-46,0,-66,-57,-95,-135,-89,-120,-352,-351,-381,-281,-435,0,0,-2,-1464,-510,-1025,-765,-951,-889,-5018,-2824]} 1. Nf3 {[%emt 1:29:01]} Nf6 {[%emt 1:30:51]} 2. g3 {[%emt 0:02:20]} d5 {[%emt 0:00:32]} 3. Bg2 {[%emt 0:00:33]} c5 {[%emt 0:00:29]} 4. d3 {[%emt 0:00:29]} Nc6 {[%emt 0:00:29]} 5. Nbd2 {[%emt 0:00:31]} g6 {[%emt 0:00:11]} 6. O-O {[%emt 0:00:00]} Bg7 {[%emt 0:00:50]} 7. e4 {[%emt 0:00:00]} O-O {[%emt 0:00:24]} 8. Re1 {[%emt 0:00:00]} e5 {[%emt 0:00:08]} 9. exd5 {[%emt 0:00:29]} Nxd5 {[%emt 0:00:58]} 10. Nc4 {[%emt 0:00:00]} Re8 {[%emt 0:00:00]} 11. c3 {[%emt 0:00:00]} Nc7 {[%emt 0:00:00]} (11... h6 $11) 12. Be3 $14 {[%emt 0:00:00]} Ne6 {[%emt 0:00:00]} 13. Qc2 {[%emt 0:00:00] White is slightly better.} Rb8 {[%emt 0:00:00]} 14. a4 {[%emt 0:00:00]} b6 {[%emt 0:00:00]} 15. Rad1 {[%emt 0:00:00]} Bb7 {[%emt 0:01:55]} 16. Bc1 {[%emt 0:03:47] [#]} (16. Qc1 $11) 16... Qc7 {[%emt 0:00:00]} (16... Ncd4 $1 $15 17. Nxd4 (17. cxd4 $2 Bxf3 18. dxe5 Nd4 $19) 17... exd4) 17. h4 {[%emt 0:00:00] [#]} (17. Qe2 $11) 17... h5 {[%emt 0:00:00]} ({Better is} 17... Ncd4 $1 $15 18. Nxd4 (18. cxd4 $2 Bxf3 19. dxe5 Nd4 $19) 18... cxd4) 18. Re2 {[%emt 0:00:00]} a6 {[%emt 0:00:00]} 19. Rde1 {[%emt 0:00:00]} Nf8 {[%emt 0:02:45] [#]} (19... f6 $15) 20. Qb3 {[%emt 0:00:00]} (20. Bf4 $1 $14) 20... Ba8 {[%emt 0:00:00] [#]} (20... Ne6 $11) 21. Ng5 {[%emt 0:00:16]} (21. Bf4 $1 $16) 21... b5 $2 {[%emt 0:00:00]} (21... Ne6 $11 {and Black has nothing to worry.}) 22. axb5 {[%emt 0:02:34]} axb5 {[%emt 0:01:50] [#]} 23. Nd6 {[%emt 0:00:00][%mdl 512]} Re7 {[%emt 0:00:00]} (23... Qxd6 $2 24. Qxf7+ Kh8 25. Qxe8 $3 $18 {[%mdl 512]}) 24. Nde4 {[%emt 0:00:00]} (24. Nxb5 Qd7 $11) (24. Ndxf7 $18 {Nh6+ would kill now.} c4 25. Qa3 (25. dxc4 Na5 $16)) 24... Na5 $11 {[%emt 0:00:00]} 25. Qa2 {[%emt 0:02:39]} c4 {[%emt 0:00:00]} 26. dxc4 {[%emt 0:00:00]} bxc4 {[%emt 0:01:47]} 27. Be3 {[%emt 0:00:29] Bc5 is the strong threat.} f6 $2 {[%emt 0:00:00] [#]} (27... Nb3 $11) 28. Nh3 $2 {[%emt 0:00:23]} (28. Bc5 $1 $18) 28... Kh8 {[%emt 0:00:00]} (28... Rd7 $11) 29. Kh2 {[%emt 0:00:00]} (29. Bc5 $16 Bxe4 30. Bxe7) 29... Nd7 {[%emt 0:00:06][%cal Bf8d7,Bd7c5,Bc5d3][%mdl 32]} 30. Rd1 {[%emt 0:00:55]} Nb3 {[%emt 0:01:09] Inhibits Red2.} 31. Ree1 {[%emt 0:00:00]} Bc6 {[%emt 0:00:50]} (31... Bb7 $11) 32. Qb1 {[%emt 0:00:29]} ({White should try} 32. Qa7 $14 Nf8 33. Qxc7 Rxc7 34. Rd6 Bxe4 35. Bxe4) 32... f5 {[%emt 0:00:00]} 33. Neg5 {[%emt 0:01:07]} (33. Nd2 $1 $11 {keeps the balance.}) 33... Bxg2 $17 {[%emt 0:01:35]} 34. Kxg2 {[%emt 0:01:23]} Ndc5 {[%emt 0:00:07]} 35. Ng1 {[%emt 0:00:00]} (35. f3 $17 {might work better.}) 35... Nd3 {[%emt 0:00:42]} 36. Re2 {[%emt 0:00:43]} (36. Rxd3 $17 cxd3 37. Qxd3) 36... Qc6+ {[%emt 0:00:19]} 37. f3 {[%emt 0:00:00]} Reb7 {[%emt 0:00:44]} 38. Qc2 {[%emt 0:00:00]} Nbc5 {[%emt 0:00:00][%cal Rb7b2]} 39. Bxc5 $2 {[%emt 0:01:02]} (39. Rb1) 39... Qxc5 $2 {[%emt 0:01:14]} (39... Nxc5 40. Qd2 $17) (39... Rxb2 $19 40. Qxb2 (40. Nf7+ $2 Kg8 $19) 40... Nxb2) 40. b4 $15 {[%emt 0:00:13]} Qb6 {[%emt 0:00:00]} (40... Qc6 $15) 41. Qa2 {[%emt 0:29:37]} (41. N1h3 $11) 41... Rc8 {[%emt 0:25:16]} 42. Ra1 {[%emt 0:00:00]} e4 $1 $36 {[%emt 0:00:00][%mdl 2048] White is under strong pressure.} 43. fxe4 {[%emt 0:00:36]} ({White should play} 43. Qd2) 43... Bxc3 $17 {[%emt 0:06:27] Black is much more active.} 44. exf5 $2 {[%emt 0:00:00]} (44. Rf1 $17) 44... Bxa1 $19 {[%emt 0:00:00]} ({Inferior is} 44... Qxb4 45. fxg6 Qb6 46. Rf1 $11) ({Wrong is} 44... Nxb4 $2 45. Qa4 Bxa1 46. Qxa1+ c3 47. Re6 $19) ({Weaker is} 44... Bxb4 45. fxg6 Bc3 46. Rf1 $11) (44... gxf5 45. Re6 Qf2+ 46. Qxf2 $16) 45. Qxa1+ {[%emt 0:03:20]} c3 {[%emt 0:01:18] Strongly threatening ...Ra7. The board is on fire.} 46. fxg6 {[%emt 0:00:00]} (46. Kh2 $142) 46... Qxg6 $2 {[%emt 0:00:00]} (46... Ra7 $19 47. g7+ Rxg7) 47. Re6 $1 $11 {[%emt 0:00:00]} Qf5 {[%emt 0:00:00]} 48. Qa2 $4 {[%emt 0:00:00][%mdl 8192]} (48. Qa6 $11 Rbc7 49. Rh6+ Kg7 50. Rxh5 Nf4+ 51. gxf4 Qg4+ 52. Kf2 Qxh5 53. Ne6+ Kh7 54. Nxc7 Qxh4+ 55. Ke2 Qh2+ 56. Kf3 Qh1+ 57. Kf2 Qh2+ 58. Kf3 Qh1+ 59. Kf2 Qh4+ 60. Ke2 Rxc7 61. Qd3+ Kg7 62. Qd4+ Kf8 63. Nf3 Qe7+ 64. Kf2) 48... Kg7 {[%emt 0:00:00]} (48... c2 $142 49. Ne2 Rf8 50. Qa1+ Rg7) 49. N1f3 {[%emt 0:00:09]} (49. Kh2 $142 Qf2+ 50. Qxf2 Nxf2 51. Kg2) 49... Nxb4 {[%emt 0:01:18]} 50. Qe2 {[%emt 0:01:47]} Nc6 {[%emt 0:00:22] aiming for ...Rb2.} 51. Rh6 {[%emt 0:00:00]} Rb2 {[%emt 0:00:35] What a bad dream for White.  Weighted Error Value: White=0.91/Black=0.85} 0-1